[Event "28th Hit Open-A 2024"]
[Site "Nova Gorica"]
[Date "2024.01.28"]
[Round "4.29"]
[White "Kukushkin, Ivan"]
[Black "Trybus, Dominika"]
[Result "1-0"]
[ECO "B22"]
[WhiteElo "1890"]
[BlackElo "1530"]
[Annotator "NA RC"]
[PlyCount "73"]
[EventDate "2024.01.22"]
[EventType "swiss"]
[EventCountry "SLO"]
[SourceTitle "playchess.com"]
[Source "ChessBase"]
[SourceQuality "1"]
[TimeControl "5400+30"]

1. e4 {[%emt 0:07:14]} c5 {[%emt 0:00:04]} 2. c3 {[%emt 0:00:14]} e6 {[%emt 0:01:49]} 3. d4 {[%emt 0:00:27]} Nf6 {[%emt 0:02:37]} 4. Bd3 {[%emt 0:02:38]} Nc6 {[%emt 0:02:20]} 5. Nf3 {[%emt 0:01:23]} Qb6 {[%emt 0:02:46]} 6. Bc2 {[%emt 0:05:14]} cxd4 {[%emt 0:03:48]} 7. cxd4 {[%emt 0:00:29]} Nb4 {[%emt 0:00:05]} 8. Nc3 {[%emt 0:00:41]} Nxc2+ {[%emt 0:02:54]} 9. Qxc2 {[%emt 0:00:08]} Be7 {[%emt 0:00:17]} 10. Bg5 {[%emt 0:01:21]} h6 {[%emt 0:06:51]} 11. Bf4 {[%emt 0:06:38]} d6 {[%emt 0:03:21]} 12. O-O {[%emt 0:03:24]} O-O {[%emt 0:00:54]} 13. Rac1 {[%emt 0:07:38]} Bd7 {[%emt 0:05:08]} 14. Qd2 {[%emt 0:06:51]} Kh7 {[%emt 0:08:42]} 15. Rfe1 {[%emt 0:02:02]} Rac8 {[%emt 0:04:58]} 16. e5 {[%emt 0:01:14]} Nd5 {[%emt 0:03:18]} 17. Bg3 {[%emt 0:03:52]} Nxc3 {[%emt 0:09:11]} 18. bxc3 {[%emt 0:01:47]} d5 {[%emt 0:03:18]} 19. h4 {[%emt 0:07:03]} Rc7 {[%emt 0:07:05]} 20. Nh2 {[%emt 0:04:58]} Rfc8 {[%emt 0:01:27]} 21. Ng4 {[%emt 0:01:01]} Qa5 {[%emt 0:04:19]} 22. Re3 {[%emt 0:14:10]} Bb4 {[%emt 0:05:06]} 23. Rf3 {[%emt 0:00:54]} Rxc3 {[%emt 0:01:34]} 24. Rcxc3 {[%emt 0:00:16]} Bxc3 {[%emt 0:02:25]} 25. Qd3+ {[%emt 0:00:21]} Kg8 {[%emt 0:01:57]} 26. Bf4 {[%emt 0:02:23]} Bb5 {[%emt 0:05:41]} 27. Qe3 {[%emt 0:02:29]} h5 {[%emt 0:01:12]} 28. Nf6+ {[%emt 0:04:22]} Kf8 {[%emt 0:04:21]} 29. Nxh5 {[%emt 0:01:00]} Qxa2 {[%emt 0:01:00]} 30. Bh6 {[%emt 0:01:53]} Qa1+ {[%emt 0:00:24]} 31. Kh2 {[%emt 0:00:08]} gxh6 {[%emt 0:02:02]} 32. Qxh6+ {[%emt 0:00:08]} Ke8 {[%emt 0:01:22]} 33. Rxf7 {[%emt 0:00:24]} Kxf7 {[%emt 0:00:27]} 34. Qg7+ {[%emt 0:00:06]} Ke8 {[%emt 0:00:10]} 35. Nf6+ {[%emt 0:00:05]} Kd8 {[%emt 0:00:14]} 36. Qf8+ {[%emt 0:00:06]} Be8 {[%emt 0:01:07]} 37. Qd6+ {[%emt 0:00:06]} 1-0

[Event "28th Hit Open-A 2024"]
[Site "Nova Gorica"]
[Date "2024.01.28"]
[Round "4.30"]
[White "Beber, Anja"]
[Black "Atakay, Mustafa"]
[Result "1-0"]
[ECO "A80"]
[WhiteElo "1606"]
[BlackElo "1889"]
[Annotator "NA RC"]
[PlyCount "99"]
[EventDate "2024.01.22"]
[EventType "swiss"]
[EventCountry "SLO"]
[SourceTitle "playchess.com"]
[Source "ChessBase"]
[SourceQuality "1"]
[TimeControl "5400+30"]

1. d4 {[%emt 0:00:06]} f5 {[%emt 0:03:10]} 2. Nf3 {[%emt 0:00:17]} Nf6 {[%emt 0:00:55]} 3. h3 {[%emt 0:00:21]} d6 {[%emt 0:06:53]} 4. Nc3 {[%emt 0:02:07]} c6 {[%emt 0:01:02]} 5. Qd3 {[%emt 0:03:53]} Qb6 {[%emt 0:07:39]} 6. e3 {[%emt 0:10:56]} g6 {[%emt 0:04:00]} 7. Be2 {[%emt 0:01:20]} Bg7 {[%emt 0:00:03]} 8. O-O {[%emt 0:01:27]} O-O {[%emt 0:00:33]} 9. a3 {[%emt 0:03:32]} Na6 {[%emt 0:02:24]} 10. Na4 {[%emt 0:00:41]} Qd8 {[%emt 0:02:47]} 11. Qb3+ {[%emt 0:02:23]} e6 {[%emt 0:01:15]} 12. Rd1 {[%emt 0:03:22]} Nc7 {[%emt 0:00:12]} 13. c4 {[%emt 0:00:17]} Qe7 {[%emt 0:05:37]} 14. Bd2 {[%emt 0:00:47]} Ne4 {[%emt 0:00:03]} 15. Be1 {[%emt 0:00:23]} b6 {[%emt 0:01:08]} 16. Rac1 {[%emt 0:02:27]} Kh8 {[%emt 0:04:07]} 17. Nc3 {[%emt 0:01:09]} Nf6 {[%emt 0:00:56]} 18. Qc2 {[%emt 0:03:50]} Bd7 {[%emt 0:01:29]} 19. e4 {[%emt 0:05:19]} Nxe4 {[%emt 0:03:34]} 20. Nxe4 {[%emt 0:00:13]} fxe4 {[%emt 0:00:02]} 21. Qxe4 {[%emt 0:00:01]} Ne8 {[%emt 0:03:50]} 22. Bc3 {[%emt 0:02:11]} Nf6 {[%emt 0:03:48]} 23. Qh4 {[%emt 0:01:21]} Ng8 {[%emt 0:02:03]} 24. Qxe7 {[%emt 0:03:13]} Nxe7 {[%emt 0:00:05]} 25. Bb4 {[%emt 0:00:20]} Nc8 {[%emt 0:00:50]} 26. Bd3 {[%emt 0:05:51]} Bf6 {[%emt 0:02:20]} 27. Re1 {[%emt 0:07:06]} Kg7 {[%emt 0:04:05]} 28. Re2 {[%emt 0:01:28]} a5 {[%emt 0:00:48]} 29. Bd2 {[%emt 0:01:29]} h6 {[%emt 0:00:33]} 30. Rce1 {[%emt 0:02:43]} g5 {[%emt 0:03:06]} 31. Be3 {[%emt 0:06:11]} Rb8 {[%emt 0:00:29]} 32. Nd2 {[%emt 0:01:39]} c5 {[%emt 0:05:32]} 33. dxc5 {[%emt 0:04:17]} Bxb2 {[%emt 0:03:16]} 34. Ne4 {[%emt 0:05:26]} Bxa3 {[%emt 0:01:57]} 35. cxd6 {[%emt 0:02:32]} Nxd6 {[%emt 0:03:13]} 36. Bd4+ {[%emt 0:00:15]} Kf7 {[%emt 0:00:58]} 37. Nf6 {[%emt 0:01:38]} Bc8 {[%emt 0:00:48]} 38. Ng4 {[%emt 0:01:04]} Nf5 {[%emt 0:02:09]} 39. Ne5+ {[%emt 0:03:15]} Kg8 {[%emt 0:00:36]} 40. Ba1 {[%emt 0:02:41]} Bb4 {[%emt 0:08:48]} 41. Rd1 {[%emt 0:00:11]} Bc5 {[%emt 0:02:26]} 42. Bxf5 {[%emt 0:01:58]} exf5 {[%emt 0:00:17]} 43. Ng6 {[%emt 0:00:18]} Ba6 {[%emt 0:04:31]} 44. Nxf8 {[%emt 0:01:43]} Bxf8 {[%emt 0:06:26]} 45. Rc2 {[%emt 0:04:22]} Rc8 {[%emt 0:00:52]} 46. Rb2 {[%emt 0:02:18]} Rc6 {[%emt 0:00:19]} 47. Rd8 {[%emt 0:00:27]} Kf7 {[%emt 0:00:11]} 48. Rd5 {[%emt 0:01:28]} Bg7 {[%emt 0:01:26]} 49. Rd7+ {[%emt 0:00:13]} Kg6 {[%emt 0:00:34]} 50. Rxg7+ {[%emt 0:00:08]} 1-0

[Event "28th Hit Open-A 2024"]
[Site "Nova Gorica"]
[Date "2024.01.28"]
[Round "4.31"]
[White "Kekic, Urban"]
[Black "Stevanic, David"]
[Result "0-1"]
[ECO "C46"]
[WhiteElo "1885"]
[BlackElo "2294"]
[Annotator "TA"]
[PlyCount "76"]
[EventDate "2024.01.22"]
[EventType "swiss"]
[EventCountry "SLO"]
[SourceTitle "playchess.com"]
[Source "ChessBase"]
[SourceQuality "1"]
[TimeControl "5400+30"]

{[%evp 12,75,76,54,75,41,63,68,105,99,148,160,125,91,80,86,99,95,123,112,140,115,355,54,85,79,95,100,86,92,107,105,133,82,91,0,0,0,0,0,0,0,0,0,0,-12,-6,-42,-43,-39,-18,-14,-4,-113,-102,-93,-114,-101,-68,-1390,-849,-1392,-1390,-29998,-29999,-29999]} 1. e4 {[%emt 0:00:09]} e5 {[%emt 0:00:26]} 2. Nf3 {[%emt 0:00:12]} Nc6 {[%emt 0:00:15]} 3. Nc3 {[%emt 0:00:23]} g6 {[%emt 0:02:46]} 4. d4 {[%emt 0:04:04]} exd4 {[%emt 0:00:25]} 5. Nxd4 {[%emt 0:00:11]} Bg7 {[%emt 0:00:11]} 6. Be3 {[%emt 0:03:18]} Nge7 {[%emt 0:00:45]} 7. Bc4 {[%emt 0:03:50]} d6 {[%emt 0:01:09]} 8. O-O {[%emt 0:10:04]} Ne5 {[%emt 0:01:56][%cal Bc6e5,Be5d7,Bd7f8,Bf8e6][%mdl 32]} 9. Be2 {[%emt 0:01:51]} h5 {[%emt 0:17:19] White is slightly better.} 10. h3 {[%emt 0:03:55]} N7c6 {[%emt 0:06:56]} (10... N5c6 $142) 11. f4 $16 {[%emt 0:11:55]} Nd7 {[%emt 0:00:06]} 12. Bf3 {[%emt 0:15:52]} O-O {[%emt 0:03:46]} 13. Qd2 {[%emt 0:05:08]} Re8 {[%emt 0:04:55]} 14. Rae1 {[%emt 0:02:18]} Nf8 {[%emt 0:02:11]} 15. Nd5 {[%emt 0:10:10]} Ne6 {[%emt 0:05:37][%cal Re6d4]} 16. c3 {[%emt 0:00:37] Hoping for f5.} Bd7 $2 {[%emt 0:08:19]} (16... Ncxd4 $16 {was necessary.} 17. cxd4 c6) 17. Qf2 $2 {[%emt 0:05:45]} (17. f5 $18) 17... Ncxd4 {[%emt 0:10:27]} 18. cxd4 {[%emt 0:00:22] f5 is the strong threat.} (18. Bxd4 $6 Nxd4 19. cxd4 Be6 $11) 18... Bb5 {[%emt 0:00:18]} 19. Be2 {[%emt 0:00:23]} (19. f5 {seems wilder.} Bxf1 20. fxe6 fxe6 21. Nf4) 19... Bxe2 {[%emt 0:00:08]} 20. Rxe2 {[%emt 0:00:15]} c6 {[%emt 0:01:06] [#]} 21. Nc3 {[%emt 0:04:36] Strongly threatening f5.} Qf6 {[%emt 0:02:50]} 22. d5 {[%emt 0:02:06]} (22. Rd2 $142) 22... Nd4 {[%emt 0:02:21]} 23. Bxd4 {[%emt 0:02:41]} ({White should try} 23. Rd2 $16 c5 24. g4) 23... Qxd4 $11 {[%emt 0:00:03]} 24. dxc6 {[%emt 0:00:45]} bxc6 {[%emt 0:01:14]} 25. Rd1 {[%emt 0:01:18]} Qb4 {[%emt 0:02:49]} 26. Qf3 {[%emt 0:01:31]} Rad8 {[%emt 0:03:28]} 27. Kh1 {[%emt 0:00:53]} Qc4 {[%emt 0:03:35]} 28. Rdd2 {[%emt 0:01:53] [#]} d5 $1 {[%emt 0:05:23]} 29. exd5 {[%emt 0:02:17]} (29. e5 f6) 29... Rxe2 {[%emt 0:00:10]} 30. Nxe2 {[%emt 0:01:50]} Rxd5 {[%emt 0:02:02]} 31. b3 {[%emt 0:01:51]} Qc5 {[%emt 0:00:02]} 32. Rd3 {[%emt 0:00:50] [#]} (32. Rxd5 $11 {was the only way to keep the balance.} cxd5 33. f5) 32... Qc2 $1 $17 {[%emt 0:00:52][%csl LRa2,LRd3]} 33. Re3 {[%emt 0:02:53]} Rd1+ {[%emt 0:02:45]} 34. Kh2 {[%emt 0:00:21][%cal Of4f5]} Qb1 $36 {[%emt 0:00:02][%mdl 2048] And now ...Rh1+ would win. Black has some pressure. Black is much more active.} (34... Qxa2 $2 35. Nc3 (35. Qxc6 Qb1 $17) 35... Qxb3 36. Re8+ (36. Qxd1 Qb8 $18) 36... Kh7 37. Nxd1 $18 (37. Qxd1 Qxc3 38. Qf3 Qxf3 $11)) 35. h4 $2 {[%emt 0:00:56][%mdl 8192]} (35. Re8+ $15 Bf8 36. Qc3) 35... Rh1+ $19 {[%emt 0:01:17]} (35... Qxa2 $2 {perishes.} 36. Nc3 (36. Qxc6 Qa1 $17) 36... Qxb3 37. Re8+ (37. Qxd1 Qb8 $18) 37... Kh7 38. Nxd1 $18 (38. Qxd1 Qxc3 39. Qd6 Qc4 $11)) 36. Kg3 {[%emt 0:00:07]} Bf6 {[%emt 0:00:08][%csl Gh1][%cal Rf6h4]} ({Less strong is} 36... Qxa2 37. Re8+ Kh7 38. f5 $17) 37. Qxc6 {[%emt 0:00:49]} Bxh4+ {[%emt 0:00:09]} 38. Kf3 {[%emt 0:00:02]} Rf1# {[%emt 0:00:06] Weighted Error Value: White=0.72/Black=0.22 (precise) .  Loses game:     	White=1     	Black=1      Missed win:     	White=1     	---        Mistake:       	White=3     	Black=1      Inaccurate:     	White=3     	Black=3      OK:         	White=9     	Black=3      Best:        	White=2     	Black=3      Strong:       	---       	Black=1} 0-1

[Event "28th Hit Open-A 2024"]
[Site "Nova Gorica"]
[Date "2024.01.28"]
[Round "4.32"]
[White "Rigatti, Giorgio"]
[Black "Gregoric, Andraz"]
[Result "0-1"]
[ECO "C69"]
[WhiteElo "1749"]
[BlackElo "2217"]
[Annotator "TA"]
[PlyCount "99"]
[EventDate "2024.01.22"]
[EventType "swiss"]
[EventCountry "SLO"]
[SourceTitle "playchess.com"]
[Source "ChessBase"]
[SourceQuality "1"]
[TimeControl "5400+30"]

{[%evp 22,99,21,20,27,-28,-9,-32,-28,-35,-41,-38,-39,-51,-58,-50,-49,-56,-50,-60,0,0,0,-41,-51,-45,-35,-35,-23,-24,-25,-43,-25,-27,-35,-29,-14,-34,-17,-18,-6,-4,0,0,0,-17,-18,-16,-13,-27,-19,-29,-20,-25,-19,-18,-3,-22,0,-14,8,-40,-28,-57,-65,-170,-168,-321,-346,-581,-569,-583,-583,-637,-643,-648,-606,-29966,-29957,-29991]} 1. e4 {[%emt 0:00:10]} e5 {[%emt 0:00:08]} 2. Nf3 {[%emt 0:00:10]} Nc6 {[%emt 0:00:08]} 3. Bb5 {[%emt 0:00:09]} a6 {[%emt 0:00:08]} 4. Bxc6 {[%emt 0:00:07]} dxc6 {[%emt 0:00:05]} 5. O-O {[%emt 0:00:06]} f6 {[%emt 0:00:04]} 6. d4 {[%emt 0:00:05]} exd4 {[%emt 0:00:06]} 7. Nxd4 {[%emt 0:00:07]} c5 {[%emt 0:00:16]} 8. Nb3 {[%emt 0:00:12]} Qxd1 {[%emt 0:00:10]} 9. Rxd1 {[%emt 0:00:07]} Bg4 {[%emt 0:00:15]} 10. f3 {[%emt 0:00:55]} Bd7 {[%emt 0:00:05]} 11. Bf4 {[%emt 0:01:00]} O-O-O {[%emt 0:00:13]} 12. Nc3 {[%emt 0:01:07]} c4 {[%emt 0:07:41]} 13. Nd2 {[%emt 0:05:16]} (13. Na5 $142) 13... Bc5+ $11 {[%emt 0:00:24]} 14. Kh1 {[%emt 0:01:28]} Be6 {[%emt 0:04:53] Es drohte Nd5. Schwarz steht etwas besser.} (14... g5 $5 15. Bg3 $8 Be6 $15) 15. Nf1 {[%emt 0:02:57]} Ne7 {[%emt 0:03:33]} 16. Rxd8+ {[%emt 0:07:50]} Rxd8 {[%emt 0:00:09]} 17. Rd1 {[%emt 0:00:10]} Rxd1 {[%emt 0:02:22]} 18. Nxd1 {[%emt 0:00:02]} b5 {[%emt 0:03:29]} 19. Be3 {[%emt 0:00:37]} Bd6 {[%emt 0:00:23]} 20. Kg1 {[%emt 0:05:18] [#]} c3 {[%emt 0:04:40]} 21. Nxc3 {[%emt 0:04:19]} b4 {[%emt 0:00:19]} 22. Nd5 {[%emt 0:00:15]} Nxd5 {[%emt 0:00:16]} 23. exd5 {[%emt 0:00:02]} Bxd5 $15 {[%emt 0:00:09][%mdl 4096] Endspiel. KBB-KBN} 24. b3 {[%emt 0:00:03]} Bf7 {[%emt 0:07:50]} 25. Nd2 {[%emt 0:04:19]} Kd7 {[%emt 0:04:26]} (25... Bg6 $5 26. Ne4 $8 Kd7 $15) 26. g3 {[%emt 0:02:17]} Kc6 {[%emt 0:03:00]} 27. Kf2 {[%emt 0:03:49]} Bg6 {[%emt 0:03:42]} 28. Ne4 {[%emt 0:01:08]} Be7 {[%emt 0:04:16]} 29. g4 {[%emt 0:11:56]} Kd5 {[%emt 0:05:10]} 30. c4+ {[%emt 0:00:39]} bxc3 {[%emt 0:04:03]} 31. Nxc3+ {[%emt 0:00:07]} Kc6 {[%emt 0:00:33]} 32. Ke2 {[%emt 0:05:45]} Bb4 {[%emt 0:02:27]} 33. Ne4 {[%emt 0:03:01]} Kd5 {[%emt 0:04:56]} 34. Kd3 {[%emt 0:00:08]} Bd6 {[%emt 0:04:22]} 35. h3 {[%emt 0:01:19]} Be5 {[%emt 0:01:26]} 36. Bd2 {[%emt 0:01:02]} Bd4 {[%emt 0:01:20]} 37. Bf4 {[%emt 0:01:34]} Bb6 {[%emt 0:00:08]} 38. Bg3 {[%emt 0:01:16]} a5 {[%emt 0:08:21]} 39. Be1 {[%emt 0:03:29]} c6 {[%emt 0:02:46]} 40. Bg3 {[%emt 0:00:11]} Bd4 {[%emt 0:03:59]} 41. a4 {[%emt 0:03:25]} (41. Bc7 $11) 41... Bb6 {[%emt 0:01:04]} 42. Be1 {[%emt 0:01:27]} f5 {[%emt 0:01:17]} 43. Nc3+ {[%emt 0:10:10] [#]} ({Weiss braucht} 43. gxf5 $1 $15 Bxf5 44. h4) 43... Ke5 $1 $19 {[%emt 0:00:07]} 44. g5 {[%emt 0:06:36]} (44. gxf5 {war nötig.} Bxf5+ 45. Ne4) 44... Kf4 $1 {[%emt 0:00:43][%csl LRf3,LRg5]} 45. Ne2+ $2 {[%emt 0:02:50]} (45. Ke2 Bf7 (45... Kxg5 $2 46. h4+ Kf4 47. Nb1 $19) 46. g6 hxg6 (46... Bxb3 $2 {geht unter.} 47. gxh7 Bc4+ 48. Kd2 $18) 47. Nd1) 45... Kxf3 {[%emt 0:00:55] Und jetzt ...f4+ wäre schön.} 46. Nd4+ {[%emt 0:00:20]} Kg2 {[%emt 0:02:35]} 47. Nxc6 {[%emt 0:04:31]} f4+ {[%emt 0:00:07]} 48. Kc4 {[%emt 0:00:17]} f3 {[%emt 0:00:06]} 49. Nxa5 {[%emt 0:01:12]} Bxa5 {[%emt 0:00:19]} 50. Kd4 {[%emt 0:00:22] Gewichteter Fehlerwert: Weiß=0.51/Schwarz=0.07 (makellos) .  Fehler:       	Weiß=5     	Schwarz=1     Ungenau:       	Weiß=2     	---        OK:         	Weiß=7     	Schwarz=7     Bester:       	Weiß=4     	Schwarz=7     Stark:        	---       	Schwarz=1} 0-1

[Event "28th Hit Open-A 2024"]
[Site "Nova Gorica"]
[Date "2024.01.28"]
[Round "4.33"]
[White "Trybus, Daniel"]
[Black "Barbir, Petar"]
[Result "1-0"]
[ECO "B50"]
[WhiteElo "2039"]
[BlackElo "1738"]
[Annotator "NA RC"]
[PlyCount "95"]
[EventDate "2024.01.22"]
[EventType "swiss"]
[EventCountry "SLO"]
[SourceTitle "playchess.com"]
[Source "ChessBase"]
[SourceQuality "1"]
[TimeControl "5400+30"]

1. e4 {[%emt 0:00:07]} c5 {[%emt 0:00:13]} 2. Nf3 {[%emt 0:00:03]} d6 {[%emt 0:00:22]} 3. g3 {[%emt 0:01:05]} g6 {[%emt 0:01:56]} 4. Bg2 {[%emt 0:00:04]} Bg7 {[%emt 0:00:11]} 5. O-O {[%emt 0:00:05]} Nc6 {[%emt 0:01:45]} 6. c3 {[%emt 0:00:30]} e5 {[%emt 0:02:17]} 7. Na3 {[%emt 0:00:47]} Nge7 {[%emt 0:04:32]} 8. Nc2 {[%emt 0:00:34]} O-O {[%emt 0:02:53]} 9. d4 {[%emt 0:04:01]} exd4 {[%emt 0:01:15]} 10. cxd4 {[%emt 0:00:14]} Bg4 {[%emt 0:04:36]} 11. Be3 {[%emt 0:06:17]} cxd4 {[%emt 0:02:23]} 12. Ncxd4 {[%emt 0:00:42]} d5 {[%emt 0:02:06]} 13. Nxc6 {[%emt 0:07:03]} bxc6 {[%emt 0:00:14]} 14. Qa4 {[%emt 0:07:59]} dxe4 {[%emt 0:05:03]} 15. Qxe4 {[%emt 0:01:10]} Bf5 {[%emt 0:00:22]} 16. Qh4 {[%emt 0:01:57]} Nd5 {[%emt 0:02:42]} 17. Bg5 {[%emt 0:00:32]} f6 {[%emt 0:00:35]} 18. Bd2 {[%emt 0:02:08]} Qb6 {[%emt 0:10:14]} 19. b3 {[%emt 0:10:19]} Rad8 {[%emt 0:02:58]} 20. Qa4 {[%emt 0:01:20]} Rd7 {[%emt 0:13:40]} 21. Rac1 {[%emt 0:01:04]} Bd3 {[%emt 0:01:49]} 22. Rfe1 {[%emt 0:00:27]} Bb5 {[%emt 0:00:35]} 23. Qg4 {[%emt 0:08:13]} c5 {[%emt 0:05:36]} 24. Re6 {[%emt 0:01:17]} Rd6 {[%emt 0:00:26]} 25. Rce1 {[%emt 0:02:57]} Bd7 {[%emt 0:01:34]} 26. Rxd6 {[%emt 0:00:02]} Qxd6 {[%emt 0:00:32]} 27. Qc4 {[%emt 0:00:12]} Kh8 {[%emt 0:01:18]} 28. Rc1 {[%emt 0:03:41]} Rc8 {[%emt 0:04:19]} 29. Ng5 {[%emt 0:00:31]} fxg5 {[%emt 0:00:07]} 30. Qxd5 {[%emt 0:00:36]} Qxd5 {[%emt 0:02:09]} 31. Bxd5 {[%emt 0:00:01]} g4 {[%emt 0:00:51]} 32. Be3 {[%emt 0:00:39]} Bd4 {[%emt 0:00:45]} 33. Rd1 {[%emt 0:06:25]} Bxe3 {[%emt 0:04:14]} 34. fxe3 {[%emt 0:00:01]} Bc6 {[%emt 0:01:25]} 35. Kf2 {[%emt 0:06:31]} Rd8 {[%emt 0:01:55]} 36. e4 {[%emt 0:00:06]} Kg7 {[%emt 0:00:15]} 37. Ke3 {[%emt 0:00:24]} g5 {[%emt 0:01:32]} 38. Rd2 {[%emt 0:07:45]} Bxd5 {[%emt 0:03:09]} 39. Rxd5 {[%emt 0:00:09]} Rxd5 {[%emt 0:00:08]} 40. exd5 {[%emt 0:00:04]} Kf6 {[%emt 0:00:07]} 41. Ke4 {[%emt 0:00:01]} h6 {[%emt 0:01:41]} 42. d6 {[%emt 0:04:50]} Ke6 {[%emt 0:00:21]} 43. d7 {[%emt 0:00:01]} Kxd7 {[%emt 0:00:06]} 44. Kd5 {[%emt 0:00:01]} h5 {[%emt 0:08:15]} 45. Kxc5 {[%emt 0:00:12]} h4 {[%emt 0:00:17]} 46. Kd5 {[%emt 0:00:21]} hxg3 {[%emt 0:00:31]} 47. hxg3 {[%emt 0:00:01]} Kc7 {[%emt 0:00:18]} 48. b4 {[%emt 0:00:18]} 1-0

[Event "28th Hit Open-A 2024"]
[Site "Nova Gorica"]
[Date "2024.01.28"]
[Round "4.34"]
[White "Vicic, Mark"]
[Black "Mestek, Igor"]
[Result "1/2-1/2"]
[ECO "A01"]
[WhiteElo "1729"]
[BlackElo "2080"]
[Annotator "NA RC"]
[PlyCount "30"]
[EventDate "2024.01.22"]
[EventType "swiss"]
[EventCountry "SLO"]
[SourceTitle "playchess.com"]
[Source "ChessBase"]
[SourceQuality "1"]
[TimeControl "5400+30"]

1. b3 {[%emt 0:00:02]} e5 {[%emt 0:00:41]} 2. Bb2 {[%emt 0:00:06]} Nc6 {[%emt 0:00:11]} 3. e3 {[%emt 0:00:06]} Nf6 {[%emt 0:00:51]} 4. Bb5 {[%emt 0:00:15]} Bd6 {[%emt 0:00:54]} 5. Na3 {[%emt 0:00:23]} Be7 {[%emt 0:01:22]} 6. Nc4 {[%emt 0:04:42]} d6 {[%emt 0:01:48]} 7. d4 {[%emt 0:04:02]} exd4 {[%emt 0:00:32]} 8. exd4 {[%emt 0:00:49]} O-O {[%emt 0:19:20]} 9. Ne3 {[%emt 0:05:15]} d5 {[%emt 0:05:10]} 10. Nf3 {[%emt 0:04:23]} Bb4+ {[%emt 0:10:39]} 11. c3 {[%emt 0:01:45]} Bd6 {[%emt 0:00:07]} 12. O-O {[%emt 0:00:35]} Ng4 {[%emt 0:05:18]} 13. Nxd5 {[%emt 0:08:31]} Nxh2 {[%emt 0:00:36]} 14. Nxh2 {[%emt 0:00:52]} Bxh2+ {[%emt 0:00:09]} 15. Kxh2 {[%emt 0:00:02]} Qxd5 {[%emt 0:00:15]} 1/2-1/2

[Event "28th Hit Open-A 2024"]
[Site "Nova Gorica"]
[Date "2024.01.28"]
[Round "4.35"]
[White "Petrosino, Germano"]
[Black "Bazilius, Augustinas"]
[Result "0-1"]
[ECO "A65"]
[WhiteElo "1715"]
[BlackElo "2030"]
[Annotator "NA RC"]
[PlyCount "72"]
[EventDate "2024.01.22"]
[EventType "swiss"]
[EventCountry "SLO"]
[SourceTitle "playchess.com"]
[Source "ChessBase"]
[SourceQuality "1"]
[TimeControl "5400+30"]

1. d4 {[%emt 0:00:02]} Nf6 {[%emt 0:01:59]} 2. c4 {[%emt 0:02:01]} c5 {[%emt 0:01:06]} 3. d5 {[%emt 0:00:16]} e6 {[%emt 0:00:02]} 4. Nc3 {[%emt 0:00:17]} exd5 {[%emt 0:00:01]} 5. cxd5 {[%emt 0:00:13]} d6 {[%emt 0:00:06]} 6. e4 {[%emt 0:00:18]} g6 {[%emt 0:00:05]} 7. Nge2 {[%emt 0:00:29]} Bg7 {[%emt 0:01:04]} 8. Ng3 {[%emt 0:00:10]} O-O {[%emt 0:00:44]} 9. Be2 {[%emt 0:00:10]} a6 {[%emt 0:02:49]} 10. a4 {[%emt 0:00:38]} Nbd7 {[%emt 0:03:43]} 11. O-O {[%emt 0:00:37]} Ne8 {[%emt 0:14:16]} 12. Be3 {[%emt 0:04:09]} Rb8 {[%emt 0:00:10]} 13. Qd2 {[%emt 0:00:54]} Nc7 {[%emt 0:01:16]} 14. f4 {[%emt 0:04:44]} Re8 {[%emt 0:10:44]} 15. Rad1 {[%emt 0:04:10]} b5 {[%emt 0:13:54]} 16. e5 {[%emt 0:05:29]} dxe5 {[%emt 0:01:48]} 17. Nce4 {[%emt 0:06:49]} f5 {[%emt 0:02:47]} 18. Nd6 {[%emt 0:08:53]} Rf8 {[%emt 0:00:13]} 19. Qc2 {[%emt 0:05:47]} e4 {[%emt 0:12:01]} 20. axb5 {[%emt 0:05:30]} Nxb5 {[%emt 0:02:04]} 21. Bxb5 {[%emt 0:01:53]} axb5 {[%emt 0:00:02]} 22. Ne2 {[%emt 0:04:43]} Ba6 {[%emt 0:04:00]} 23. b4 {[%emt 0:01:28]} Bd4 {[%emt 0:07:25]} 24. Nxd4 {[%emt 0:03:54]} cxd4 {[%emt 0:00:09]} 25. Bxd4 {[%emt 0:00:16]} Rb6 {[%emt 0:02:05]} 26. Bc5 {[%emt 0:02:47]} Rf6 {[%emt 0:01:51]} 27. Nxe4 {[%emt 0:02:55]} fxe4 {[%emt 0:00:03]} 28. Qxe4 {[%emt 0:00:28]} Rb8 {[%emt 0:02:19]} 29. Be7 {[%emt 0:01:48]} Qb6+ {[%emt 0:00:01]} 30. Kh1 {[%emt 0:00:39]} Re8 {[%emt 0:00:06]} 31. d6 {[%emt 0:01:10]} Rxd6 {[%emt 0:01:17]} 32. Rxd6 {[%emt 0:01:48]} Qxd6 {[%emt 0:00:07]} 33. Bxd6 {[%emt 0:00:06]} Rxe4 {[%emt 0:00:01]} 34. h3 {[%emt 0:01:31]} Rd4 {[%emt 0:00:07]} 35. Be7 {[%emt 0:00:24]} Kf7 {[%emt 0:00:12]} 36. Ra1 {[%emt 0:00:56]} Kxe7 {[%emt 0:00:08]} 0-1